Workbook

Sheet 跨界河流河长名录
A2: 江门市跨县河流河长名录
A3: 序号 | B3: 河流名称 | C3: 河流长度(km) | D3: 市级河长 | H3: 县级河长 | L3: 镇级河长 | P3: 村级河长
D4: 河长 | E4: 职务 | F4: 河长助理 | G4: 职务 | H4: 河段名称 | I4: 河段长度(km) | J4: 河长 | K4: 职务 | L4: 河段名称 | M4: 河段长度(km) | N4: 河长 | O4: 职务 | P4: 村(社区) | Q4: 河段长度(km) | R4: 河长 | S4: 职务
A5: 1 | B5: 西江（包括西江干流水道、西海水道、北街水道、海洲水道、石板沙水道、磨刀门水道、荷麻溪、劳劳溪、虎跳门水道江门界） | C5: 141 | D5: 林应武 | E5: 市委书记、市人大常委会主任 | F5: 梁君明 | G5: 市水利局局长，市河长制 办公室常务副主任 | H5: 西江干流水道鹤山市段 | I5: 15.80 | J5: 林贤进 | K5: 市委书记 | L5: 西江干流水道古劳镇段 | M5: 8.80 | N5: 谢文清 | O5: 镇委书记 | P5: 丽水 | Q5: 1.60 | R5: 李建辉 | S5: 书记
P6: 古劳 | Q6: 2.70 | R6: 冯可源 | S6: 书记
P7: 双桥 | Q7: 1.40 | R7: 吕耀荣 | S7: 书记
P8: 上升 | Q8: 2.50 | R8: 李德章 | S8: 书记
P9: 新星 | Q9: 0.60 | R9: 吕炳洪 | S9: 书记
L10: 西江干流水道沙坪街道段 | M10: 7.00 | N10: 任文 | O10: 沙坪街道办党工委书记 | P10: 黄宝坑 | Q10: 1.20 | R10: 吴志朋 | S10: 书记
P11: 杰洲 | Q11: 2.20 | R11: 陆剑飞 | S11: 主任
P12: 坡山 | Q12: 3.60 | R12: 梁伟成 | S12: 书记
H13: 西江蓬江区段（包括西江干流水道、西海水道、北街水道、海洲水道） | I13: 42.27 | J13: 伍培进 | K13: 区委书记、市滨江新区党工委书记 | L13: 西江棠下镇段（包括西江干流水道、西海水道） | M13: 18.50 | N13: 谢树浓 | O13: 副区长、镇委书记 | P13: 天乡村 | Q13: 4.30 | R13: 谭文湛 | S13: 书记
P14: 河山村 | Q14: 4.72 | R14: 黎沃润 | S14: 书记
P15: 三和村 | Q15: 1.65 | R15: 何伟健 | S15: 书记
P16: 横江村 | Q16: 1.96 | R16: 伍国成 | S16: 书记
P17: 石山村 | Q17: 2.04 | R17: 区启初 | S17: 书记
P18: 仁厚村 | Q18: 1.18 | R18: 莫瑞勤 | S18: 书记
P19: 周郡村 | Q19: 2.65 | R19: 谢嘉荣 | S19: 书记
L20: 西江荷塘镇段（包括西海水道、海洲水道） | M20: 16.31 | N20: 区林杰 | O20: 镇委书记 | P20: 南村村 | Q20: =1.78+0.64 -> 2.42 | R20: 胡秋维 | S20: 书记
P21: 塔岗村 | Q21: 3.52 | R21: 胡维耀 | S21: 书记
P22: 吕步村 | Q22: 2.61 | R22: 冯顺意 | S22: 书记
P23: 禾冈村 | Q23: 3.14 | R23: 陈惠欢 | S23: 书记
P24: 高村村 | Q24: 0.30 | R24: 甘卓根 | S24: 书记
P25: 唐溪村 | Q25: 0.28 | R25: 黄均元 | S25: 书记
P26: 康溪村 | Q26: 2.89 | R26: 岑建恒 | S26: 书记
P27: 霞村村 | Q27: 0.71 | R27: 高国林 | S27: 书记
L28: 西江潮连街道段（包括西海水道、北街水道） | M28: 20.20 | N28: 温国宁 | O28: 党工委书记 | P28: 富冈社区 | Q28: 2.68 | R28: 区超发 | S28: 书记
P29: 卢边社区 | Q29: 4.85 | R29: 卢柏安 | S29: 书记
P30: 坦边社区 | Q30: 2.83 | R30: 陈卓声 | S30: 书记
P31: 芝山社区 | Q31: 2.02 | R31: 陈子安 | S31: 书记
P32: 塘边社区 | Q32: 0.16 | R32: 何伟杰 | S32: 书记
P33: 豸冈社区 | Q33: 2.74 | R33: 陈嘉辉 | S33: 书记
L34: 西江环市街道段（北街水道） | M34: 4.99 | N34: 李志华 | O34: 街党工委书记 | P34: 篁边经联社 | Q34: 3.00 | R34: 邓立新 | S34: 书记
P35: 丽苑社区 | Q35: 1.43 | R35: 钟秀丽 | S35: 书记
P36: 群众社区 | Q36: 0.56 | R36: 唐艳玲 | S36: 书记、主任
L37: 西江白沙街道段（北街水道） | M37: 2.99 | N37: 谢强伟 | O37: 党工委书记 | P37: 甘化社区 | R37: 蒋仲明 | S37: 书记 | T37: 海傍社区北街水道原长度1.77km，现一部分分给甘化社区，甘化原长1.22，现长度未知
P38: 甘棠社区 | R38: 谭颖萍 | S38: 书记
H39: 西江江海区段（包括西海水道、北街水道、石板沙水道） | I39: =7.26+4.92+1.99 -> 14.17 | J39: 彭章瑞 | K39: 江门高新区党工委书记、管委会主任，江海区委书记 | L39: 西江外海街道段（包括西海水道、北街水道、石板沙水道） | M39: 11.57 | N39: 邓群标 | O39: 党工委书记 | P39: 沙津横村 | Q39: 4.30 | R39: 陈永安 | S39: 书记
P40: 清兰村 | Q40: 1.98 | R40: 陈健荣 | S40: 书记
P41: 四大村 | Q41: 0.56 | R41: 陈志祥 | S41: 书记
P42: 直冲村 | Q42: 0.64 | R42: 郭卫强 | S42: 书记
P43: 前进村 | Q43: 2.29 | R43: 邓健愉 | S43: 书记
P44: 金溪村 | Q44: 0.75 | R44: 陈国成 | S44: 社区书记、主任
P45: 石鹤利村 | Q45: 1.00 | R45: 梁德均 | S45: 书记
P46: 中东村 | Q46: 1.99 | R46: 梁永钊 | S46: 书记
L47: 西江江南街道段 （北街水道） | M47: 2.60 | N47: 林永豪 | O47: 江南街道党工委书记 | P47: 滘北联社 | Q47: 0.85 | R47: 张晴坚 | S47: 理事长
H48: 西江新会区段（包括石板沙水道、磨刀门水道、荷麻溪、劳劳溪、虎跳门水道） | I48: 76.37 | J48: 文彦 | K48: 区委书记 | L48: 西江大鳌镇段（包括石板沙水道、磨刀门水道、荷麻溪） | M48: 40.85 | N48: 叶长新 | O48: 镇委书记 | P48: 36顷村 | Q48: 3.418 | R48: 谭超华 | S48: 书记、主任
P49: 安生村 | Q49: 1.9 | R49: 黄卫源 | S49: 书记、主任
P50: 百顷村 | Q50: 4 | R50: 陈雪娟 | S50: 书记、主任
P51: 大鳌村 | Q51: 2.54 | R51: 庞豪奕 | S51: 书记、主任
P52: 大鳌尾村 | Q52: 7.52 | R52: 梁丙添 | S52: 书记、主任
P53: 大八顷村 | Q53: 4.1 | R53: 苏伟光 | S53: 书记、主任
P54: 东风村 | Q54: 2.7 | R54: 黄长玲 | S54: 书记、主任
P55: 东升村 | Q55: 2.3 | R55: 霍桥海 | S55: 书记、主任
P56: 东卫村 | Q56: 1.7 | R56: 卢润森 | S56: 书记、主任
P57: 南沙村 | Q57: 0.78 | R57: 黄玉明 | S57: 书记、主任
P58: 沙头村 | Q58: 1 | R58: 吴伟聪 | S58: 书记、主任
P59: 深滘村 | Q59: 1.16 | R59: 黄平勇 | S59: 书记、主任
P60: 十围村 | Q60: 2.33 | R60: 黄桂文 | S60: 书记、主任
P61: 新地村 | Q61: 0.98 | R61: 吴华才 | S61: 书记、主任
P62: 新联村 | Q62: 3.53 | R62: 黄毅俊 | S62: 书记、主任
P63: 新一村 | Q63: 3.3 | R63: 冯华洪 | S63: 书记、主任
L64: 西江睦洲镇段（包括石板沙水道、荷麻溪、劳劳溪） | M64: 32.48 | N64: 陈振平 | O64: 镇委书记 | P64: 东成村 | Q64: 3.16 | R64: 杨万胜 | S64: 书记、主任
P65: 东向村 | Q65: 0.8 | R65: 廖健文 | S65: 书记、主任
P66: 黄布村 | Q66: 8.02 | R66: 赵秀嫦 | S66: 书记、主任
P67: 莲腰村 | Q67: 4.43 | R67: 翁龙云 | S67: 书记、主任
P68: 莲子塘村 | Q68: 6.06 | R68: 郑健新 | S68: 书记、主任
P69: 龙泉村 | Q69: 3.7 | R69: 陈才胜 | S69: 书记、主任
P70: 睦洲村 | Q70: 2.23 | R70: 杨泳洪 | S70: 书记、主任
P71: 南安村 | Q71: 2.54 | R71: 梁瑞文 | S71: 书记、主任
P72: 南镇村 | Q72: 4.35 | R72: 关俊杰 | S72: 书记、主任
H73: 西江新会区段（包括石板沙水道、磨刀门水道、荷麻溪、劳劳溪、虎跳门水道） | I73: 76.37 | J73: 文彦 | K73: 区委书记 | L73: 西江睦洲镇段（包括石板沙水道、荷麻溪、劳劳溪） | M73: 32.48 | N73: 陈振平 | O73: 镇委书记 | P73: 牛古田村 | Q73: 1.26 | R73: 石国良 | S73: 书记、主任
P74: 石板沙村 | Q74: 12.38 | R74: 冯郁腾 | S74: 书记、主任
P75: 新沙村 | Q75: 1.86 | R75: 吴贵生 | S75: 书记、主任
L76: 西江沙堆镇段（包括荷麻溪、虎跳门水道） | M76: 20.57 | N76: 刘键英 | O76: 镇委书记 | P76: 八顷村 | Q76: 1.84 | R76: 梁卫文 | S76: 书记、主任
P77: 大环村 | Q77: 1.07 | R77: 李瑞艮 | S77: 书记
P78: 独联村 | Q78: 1 | R78: 林新庆 | S78: 书记、主任
P79: 梅阁村 | Q79: 11.67 | R79: 蒋炎韶 | S79: 主任
P80: 梅兴村 | Q80: 3.93 | R80: 曾永强 | S80: 主任
P81: 沙东村 | Q81: 0.23 | R81: 胡文龙 | S81: 书记、主任
P82: 沙角村 | Q82: 0.83 | R82: 曾艺强 | S82: 主任
P83: 居安村 | Q83: 0.72 | R83: 林权伟 | S83: 主任
P84: 梅北村 | Q84: 1.25 | R84: 聂亦权 | S84: 书记、主任
P85: 沙西村 | Q85: 0.85 | R85: 廖耀威 | S85: 书记、主任
A86: 2 | B86: 潭江（锦江水库坝下至崖门大桥） | C86: 203 | D86: 刘毅 | E86: 市委副书记、市长 | F86: 区舵样 | G86: 市水利局副局长，市河长制办公室副主任 | H86: 潭江恩平市段 | I86: 89.30 | J86: 刘 兵 | K86: 市委副书记、 市长 | L86: 潭江大田镇段 | M86: 12.64 | N86: 吴活抗 | O86: 镇委书记 | P86: 上南村委会 | Q86: 7.25 | R86: 黎玩森 | S86: 书记
P87: 黄沙村委会 | Q87: 1.88 | R87: 谭杰锋 | S87: 书记
P88: 白石村委会 | Q88: 1.80 | R88: 黎艺青 | S88: 书记
P89: 大田镇圩镇居委会 | Q89: 1.65 | R89: 吴杰锋 | S89: 书记
P90: 石山村委会 | Q90: 5.64 | R90: 吴柱榴 | S90: 书记
P91: 华南村委会 | Q91: 2.08 | R91: 方维军 | S91: 书记
L92: 潭江恩城街道段 | M92: 22.65 | N92: 岑儒确 | O92: 党工委书记 | P92: 东门社区居委会 | Q92: 2.21 | R92: 雷卫儒 | S92: 书记
P93: 新塘社区居委会 | Q93: 1.67 | R93: 伍均晃 | S93: 书记
P94: 西门社区居委会 | Q94: 2.28 | R94: 吴伟毅 | S94: 书记
P95: 河南社区居委会 | Q95: 0.80 | R95: 吴国坚 | S95: 书记
P96: 小岛社区居委会 | Q96: 3.85 | R96: 钟健盼 | S96: 书记
P97: 凤山社区居委会 | Q97: 1.01 | R97: 薛小春 | S97: 书记
P98: 飞鹅塘社区居委会 | Q98: 2.97 | R98: 许家琦 | S98: 书记
P99: 沙联村委会 | Q99: 6.60 | R99: 吴添强 | S99: 书记
P100: 西安村委会 | Q100: 2.98 | R100: 吴才明 | S100: 书记
P101: 平富岗村委会 | Q101: 5.10 | R101: 梁艺兴 | S101: 书记
P102: 茶坑村委会 | Q102: 3.06 | R102: 吴明亮 | S102: 主任
P103: 新楼村委会 | Q103: 2.43 | R103: 李木喜 | S103: 书记
P104: 塘劳村委会 | Q104: 2.87 | R104: 李惠祥 | S104: 书记
L105: 潭江东成镇段 | M105: 14.50 | N105: 陈伟民 | O105: 镇长 | P105: 东成镇圩镇居委会 | Q105: 1.49 | R105: 梁茂林 | S105: 书记
P106: 下绵湖村委会 | Q106: 1.98 | R106: 胡远锋 | S106: 书记
P107: 石路村委会 | Q107: 3.11 | R107: 梁杰南 | S107: 书记
P108: 四联村委会 | Q108: 1.74 | R108: 侯健赞 | S108: 书记
A109: 2 | B109: 潭江（锦江水库坝下至崖门大桥） | C109: 203 | D109: 刘毅 | E109: 市委副书记、市长 | F109: 区舵样 | G109: 市水利局副局长，市河长制办公室副主任 | H109: 潭江恩平市段 | I109: 89.30 | J109: 刘 兵 | K109: 市委副书记、 市长 | L109: 潭江东成镇段 | M109: 14.50 | N109: 陈伟民 | O109: 镇长 | P109: 鹿颈村委会 | Q109: 1.91 | R109: 陈达昂 | S109: 书记
P110: 横槎村委会 | Q110: 0.96 | R110: 张伟明 | S110: 书记
P111: 塘洲村委会 | Q111: 4.19 | R111: 余杰荣 | S111: 书记
L112: 潭江圣堂镇段 | M112: 14.14 | N112: 何伟劲 | O112: 镇委书记 | P112: 进职村委会 | Q112: 3.95 | R112: 李聘宁 | S112: 书记
P113: 龙塘村委会 | Q113: 3.36 | R113: 郑晓俊 | S113: 书记
P114: 塘龙村委会 | Q114: 2.83 | R114: 吴素霞 | S114: 书记
P115: 根竹头村委会 | Q115: 1.40 | R115: 陈成志 | S115: 书记
P116: 歇马村委会 | Q116: 2.08 | R116: 梁绍良 | S116: 书记
P117: 圩镇居委会 | Q117: 0.92 | R117: 何国运 | S117: 书记
L118: 潭江君堂镇段 | M118: 18.52 | N118: 余广洽 | O118: 镇委书记 | P118: 堡城村委会 | Q118: 2.38 | R118: 吴志坚 | S118: 书记
P119: 潢步头村委会 | Q119: 4.35 | R119: 陈玩沃 | S119: 书记
P120: 黎塘村委会 | Q120: 4.40 | R120: 张伟成 | S120: 书记
P121: 清湖村委会 | Q121: 2.21 | R121: 郑劲平 | S121: 书记
P122: 西园村委会 | Q122: 1.45 | R122: 吴丽云 | S122: 书记
P123: 新君村委会 | Q123: 4.52 | R123: 郑绍新 | S123: 书记
P124: 太平村委会 | Q124: 0.36 | R124: 岑丁权 | S124: 书记
P125: 塘库村委会 | Q125: 3.05 | R125: 郑超扬 | S125: 书记
P126: 江洲圩居委会 | Q126: 1.32 | R126: 岑少健 | S126: 书记
P127: 君堂圩居委会 | Q127: 1.52 | R127: 郑寿彬 | S127: 书记
L128: 潭江沙湖镇段 | M128: 3.50 | N128: 侯光裔 | O128: 市人大常委会副主任、镇委书记 | P128: 南塘村委会 | Q128: 3.49 | R128: 莫荣欢 | S128: 书记
H129: 潭江开平市段 | I129: 56.00 | J129: 庞正华 | K129: 市委书记 | L129: 潭江蚬冈镇段 | M129: 9.78 | N129: 张健东 | O129: 镇党委书记 | P129: 横石村 | Q129: 3.70 | R129: 周金明 | S129: 书记
P130: 蚬北村 | Q130: 1.90 | R130: 黄树龙 | S130: 书记
P131: 东和村 | Q131: 2.56 | R131: 黄健文 | S131: 书记
L132: 潭江蚬冈镇段 | M132: 9.78 | N132: 张健东 | O132: 镇党委书记 | P132: 春一村 | Q132: 1.68 | R132: 黄宇丰 | S132: 书记
L133: 潭江百合镇段 | M133: 21.92 | N133: 熊日升 | O133: 镇委书记 | P133: 上洞村 | Q133: 3.50 | R133: 周自强 | S133: 书记
P134: 中洞村 | Q134: 1.10 | R134: 方振溢 | S134: 书记
P135: 茅冈村 | Q135: 5.30 | R135: 周润表 | S135: 书记
P136: 松蓢村 | Q136: 0.80 | R136: 关宁赐 | S136: 主任
P137: 齐塘村 | Q137: 4.50 | R137: 黄石华 | S137: 书记
P138: 北降村 | Q138: 4.10 | R138: 卢伟强 | S138: 书记
P139: 百合居委会 | Q139: 1.20 | R139: 关炳其 | S139: 书记
P140: 厚山村 | Q140: 1.30 | R140: 关喜辉 | S140: 书记
P141: 儒东村 | Q141: 2.30 | R141: 胡桂影 | S141: 书记
P142: 马降龙村 | Q142: 5.30 | R142: 黄伟良 | S142: 书记
L143: 潭江赤坎镇段 | M143: 12.05 | N143: 杨均雅 | O143: 赤坎古镇人大主席 | P143: 石溪村 | Q143: 0.35 | R143: 关宗敏 | S143: 书记
P144: 渔业居委会 | Q144: 1.95 | R144: 徐荣发 | S144: 书记
P145: 永坚村 | Q145: 0.30 | R145: 胡素娟 | S145: 书记
P146: 树溪村 | Q146: 2.43 | R146: 司徒光牛 | S146: 书记
P147: 中股村 | Q147: 0.91 | R147: 司徒远林 | S147: 书记
P148: 灵源村 | Q148: 0.83 | R148: 关力宇 | S148: 书记
P149: 芦阳村 | Q149: 1.38 | R149: 关灿杰 | S149: 书记
L150: 潭江赤坎镇段 | M150: 12.05 | N150: 杨均雅 | O150: 赤坎古镇人大主席 | P150: 塘联村 | Q150: 2.74 | R150: 司徒维养 | S150: 书记
P151: 南楼村 | Q151: 5.84 | R151: 司徒锡启 | S151: 书记
P152: 沙溪村 | Q152: 2.63 | R152: 梁焕新 | S152: 书记
P153: 新建村 | Q153: 2.10 | R153: 胡占文 | S153: 书记
P154: 新联村 | Q154: 1.95 | R154: 谭秋象 | S154: 书记
P155: 五堡村 | Q155: 0.93 | R155: 陈宏源 | S155: 书记
P156: 塘美村 | Q156: 1.42 | R156: 谭洪洪 | S156: 书记
L157: 潭江长沙街道段 | M157: 5.62 | N157: 朱乔 | O157: 党工委书记 | P157: 三联村 | Q157: 1.32 | R157: 张振雄 | S157: 书记
P158: 八一村 | Q158: 1.60 | R158: 陈现龙 | S158: 书记
P159: 三江居委会 | Q159: 2.70 | R159: 陈建军 | S159: 书记
L160: 潭江三埠街道段 | M160: 13.70 | N160: 梁雁仙 | O160: 街道党工委书记 | P160: 三围村 | Q160: 1.20 | R160: 余新豪 | S160: 书记
P161: 荻海居委会 | Q161: 0.87 | R161: 黄景辉 | S161: 书记
P162: 东河居委会 | Q162: 0.65 | R162: 黄清媚 | S162: 书记、主任
P163: 新安居委会 | Q163: 0.58 | R163: 林雪云 | S163: 书记、主任
P164: 新兴居委会 | Q164: 0.74 | R164: 黄耀庭 | S164: 书记
P165: 中山居委会 | Q165: 0.97 | R165: 甄炳奎 | S165: 书记、主任
P166: 簕冲村 | Q166: 0.70 | R166: 郑国配 | S166: 书记
P167: 石海村 | Q167: 1.70 | R167: 甄宏顺 | S167: 书记、主任
P168: 祥龙居委会 | Q168: 3.00 | R168: 谭惠球 | S168: 书记、主任
P169: 长沙西居委会 | Q169: 1.10 | R169: 谭春英 | S169: 书记、主任
P170: 长沙东居委会 | Q170: 1.10 | R170: 谭杏爱 | S170: 书记
P171: 港口居委会 | Q171: 2.10 | R171: 徐丽媛 | S171: 主任
L172: 潭江水口镇段 | M172: 17.39 | N172: 刘剑锋 | O172: 镇委书记 | P172: 新美村 | Q172: 0.95 | R172: 张卓进 | S172: 主任
P173: 金山村 | Q173: 2.31 | R173: 张永胜 | S173: 书记
P174: 桥溪村 | Q174: 3.53 | R174: 余细牛 | S174: 主任
P175: 联竹村 | Q175: 1.10 | R175: 冯策扬 | S175: 主任
P176: 开锋村 | Q176: 1.35 | R176: 何富强 | S176: 主任
P177: 龙东村 | Q177: 1.43 | R177: 何荣顺 | S177: 主任
P178: 新市居委会 | Q178: 1.28 | R178: 周锦荣 | S178: 主任
P179: 泮南村 | Q179: 2.47 | R179: 邝柏浓 | S179: 主任
P180: 永安村 | Q180: 1.82 | R180: 邝厚创 | S180: 主任
P181: 泮村村 | Q181: 1.15 | R181: 邝健峰 | S181: 主任
H182: 潭江台山市段 | I182: 19.00 | J182: 李惠文 | K182: 市委书记 | L182: 潭江白沙镇段 | M182: 3.50 | N182: 陈健洪 | O182: 镇委书记 | P182: 五围村委会 | Q182: 3.50 | R182: 余肖华 | S182: 主任
L183: 潭江水步镇段 | M183: 3.50 | N183: 伍礼明 | O183: 镇委副书记、镇长 | P183: 荔枝塘村委会 | Q183: 1.90 | R183: 李锦玲 | S183: 主任
P184: 冈宁村委会 | Q184: 0.80 | R184: 黄子安 | S184: 主任
P185: 联兴村委会 | Q185: 0.80 | R185: 刘志强 | S185: 主任
L186: 潭江大江镇段 | M186: 12.00 | N186: 蔡月湖 | O186: 镇委书记 | P186: 麦巷村委会 | Q186: 1.40 | R186: 梁永祥 | S186: 主任
P187: 五星村委会 | Q187: 2.00 | R187: 伍尧岳 | S187: 主任
P188: 大巷村委会 | Q188: 0.50 | R188: 林晓华 | S188: 主任
P189: 一居委村委会 | Q189: 4.00 | R189: 李超林 | S189: 主任
P190: 二居委村委会 | R190: 刘达华 | S190: 主任
P191: 张良边村委会 | Q191: 2.00 | R191: 雷求恩 | S191: 主任
P192: 铁滘村委会 | Q192: 1.00 | R192: 李惠明 | S192: 主任
P193: 沙冲村委会 | Q193: 0.70 | R193: 汤素华 | S193: 主任
P194: 山前村委会 | Q194: 0.40 | R194: 伍灿慰 | S194: 主任
H195: 潭江新会段（包括潭江干流及陈冲水道、横海支流） | I195: 82.82 | J195: 梁明建 | K195: 区委副书记、区长 | L195: 潭江司前镇段 | M195: 9.18 | N195: 梁捷元 | O195: 镇委书记 | P195: 昆仑村 | Q195: 0.64 | R195: 李炳常 | S195: 书记
P196: 三益村 | Q196: 1.7 | R196: 何举论 | S196: 书记
P197: 田边村 | Q197: 1.55 | R197: 梁国贤 | S197: 书记
P198: 小坪村 | Q198: 1.65 | R198: 黄兆 | S198: 书记
P199: 雅山村 | Q199: 3.64 | R199: 关华钦 | S199: 书记
H200: 潭江新会段（包括潭江干流及陈冲水道、横海支流） | I200: 82.82 | J200: 梁明建 | K200: 区委副书记、区长 | L200: 潭江罗坑镇段（含陈冲水道） | M200: =13.65+3.84 -> 17.49 | N200: 苏朝荣 | O200: 镇委副书记、镇长 | P200: 陈冲村 | Q200: 4.84 | R200: 陈愉俊 | S200: 书记、主任
P201: 桂林村 | Q201: 1.47 | R201: 黄华根 | S201: 书记、主任
... 444 more rows

Sheet 水库、湖泊名录
A2: 江门市市管水库、湖泊河长名录
A3: 序号 | B3: 水库（山塘、湖泊）名称 | C3: 库容(万m3) | D3: 市级河长 | H3: 县级河长 | K3: 镇级河长 | N3: 村级河长
D4: 河长 | E4: 职务 | F4: 河长助理 | G4: 职务 | H4: 市(区) | I4: 河长 | J4: 职务 | K4: 镇(街) | L4: 河长 | M4: 职务 | N4: 村(社区) | O4: 河长 | P4: 职务
A5: 1 | B5: 东湖 | C5: / | D5: 周伟万 | E5: 市政协主席 | F5: 郑子晖 | G5: 市政协副秘书长 | H5: 蓬江区 | I5: 关志钒 | J5: 区委常委、 区委组织部部长、区委党校校长；滨江新区党工委组织部部长、党工委委员 | K5: 白沙街道 | L5: 郭晓君 | M5: 党工委副书记
K6: 东湖公园管理所 | L6: 苏达明 | M6: 所长
A7: 2 | B7: 锦江水库 | C7: 41800 | D7: 王长青 | E7: 市政府副市长、市河长制办公室主任 | F7: 莫劲锋 | G7: 市政府 副秘书长、市河长制办公室常务副主任 | H7: 恩平市 | I7: 何焕仍 | J7: 市委副书记、委政法委书记 | K7: 那吉镇 | L7: 黎晓辉 | M7: 镇委书记 | N7: 沙河村委会 | O7: 李朝莲 | P7: 书记
N8: 黄角村委会 | O8: 李佳添 | P8: 书记
H9: 江门市锦江水库工程管理处 | I9: 黄乐 | J9: 党委书记、主任 | K9: 大田镇 | L9: 张玉婷 | M9: 镇委副书记、镇长 | N9: 炉塘村委会 | O9: 郑木源 | P9: 书记
H10: 江门市河排林场 | I10: 冯诚泽 | J10: 党委书记、场长

Sheet Sheet1
